[Event "*** Titled Tuesday Blitz"]
[Site "Chess.com"]
[Date "2020.04.07"]
[Round "3"]
[White "vinniethepooh"]
[Black "jonaszmb"]
[Result "1-0"]
[WhiteElo "2624"]
[BlackElo "2402"]
[TimeControl "180+1"]
[EndTime "13:30:11 PDT"]
[Termination "vinniethepooh won by resignation"]

1. d4 {[%clk 0:03:00.9]} 1... d5 {[%clk 0:02:58.2]} 2. c4 {[%clk 0:03:01.2]}
2... Bf5 {[%clk 0:02:58.2]} 3. cxd5 {[%clk 0:02:58.2]} 3... Bxb1 {[%clk
0:02:57.6]} 4. Qa4+ {[%clk 0:02:58.6]} 4... c6 {[%clk 0:02:57.8]} 5. dxc6 {[%clk
0:02:58.7]} 5... Nxc6 {[%clk 0:02:58.7]} 6. Rxb1 {[%clk 0:02:58]} 6... e5 {[%clk
0:02:59]} 7. a3 {[%clk 0:02:35.4]} 7... Qxd4 {[%clk 0:02:41.4]} 8. Qxd4 {[%clk
0:02:19]} 8... Nxd4 {[%clk 0:02:35.1]} 9. e3 {[%clk 0:02:19.2]} 9... Nc6 {[%clk
0:02:34.3]} 10. Bb5 {[%clk 0:02:13.7]} 10... O-O-O {[%clk 0:02:32.6]} 11. Bxc6
{[%clk 0:02:12.5]} 11... bxc6 {[%clk 0:02:32.7]} 12. Nf3 {[%clk 0:02:08.3]}
12... f6 {[%clk 0:02:28.5]} 13. Bd2 {[%clk 0:02:03.9]} 13... Kb7 {[%clk
0:02:25.2]} 14. Bc3 {[%clk 0:01:57.5]} 14... Bc5 {[%clk 0:02:19]} 15. Ke2 {[%clk
0:01:51.5]} 15... Ne7 {[%clk 0:02:17.7]} 16. e4 {[%clk 0:01:47.4]} 16... Bb6
{[%clk 0:01:57.4]} 17. Rhd1 {[%clk 0:01:43.7]} 17... c5 {[%clk 0:01:40.2]} 18.
Nd2 {[%clk 0:01:34.2]} 18... Nc6 {[%clk 0:01:38.7]} 19. Nc4 {[%clk 0:01:34.2]}
19... Nd4+ {[%clk 0:01:38.6]} 20. Bxd4 {[%clk 0:01:34.6]} 20... cxd4 {[%clk
0:01:36]} 21. Kd3 {[%clk 0:01:32.8]} 21... Rhe8 {[%clk 0:01:26]} 22. b4 {[%clk
0:01:31.6]} 22... Re7 {[%clk 0:01:24.4]} 23. a4 {[%clk 0:01:30.2]} 23... f5
{[%clk 0:00:59.1]} 24. Re1 {[%clk 0:01:23.7]} 24... f4 {[%clk 0:00:32.6]} 25. a5
{[%clk 0:01:17.5]} 25... Bc7 {[%clk 0:00:32.7]} 26. b5 {[%clk 0:01:18]} 26... a6
{[%clk 0:00:32.9]} 27. f3 {[%clk 0:01:11.4]} 27... g5 {[%clk 0:00:26.6]} 28. Rb3
{[%clk 0:01:03.3]} 28... axb5 {[%clk 0:00:15.7]} 29. Rxb5+ {[%clk 0:01:02.9]}
29... Ka6 {[%clk 0:00:13.2]} 30. Rc5 {[%clk 0:00:59.9]} 30... g4 {[%clk
0:00:08.8]} 31. Rb1 {[%clk 0:00:57.1]} 31... gxf3 {[%clk 0:00:08.8]} 32. gxf3
{[%clk 0:00:58]} 32... Rg8 {[%clk 0:00:08.3]} 33. Rc6+ {[%clk 0:00:53.7]} 33...
Ka7 {[%clk 0:00:08]} 34. a6 {[%clk 0:00:54.1]} 34... Bd8 {[%clk 0:00:05.2]} 35.
Nd6 {[%clk 0:00:52.1]} 35... Reg7 {[%clk 0:00:01.2]} 36. Nc8+ {[%clk 0:00:43]}
36... Ka8 {[%clk 0:00:01.5]} 37. a7 {[%clk 0:00:42.9]} 37... Rb7 {[%clk
0:00:01.4]} 38. Rxb7 {[%clk 0:00:33.2]} 38... Kxb7 {[%clk 0:00:02.3]} 39. Ra6
{[%clk 0:00:33.7]} 39... Ka8 {[%clk 0:00:01.7]} 40. Nd6 {[%clk 0:00:27.4]} 40...
Bc7 {[%clk 0:00:01.9]} 41. Nb5 {[%clk 0:00:26.2]} 41... Rg7 {[%clk 0:00:01.9]}
42. Rc6 {[%clk 0:00:24.6]} 42... Bd8 {[%clk 0:00:02]} 43. Rc8+ {[%clk
0:00:24.3]} 1-0

[Event "*** Titled Tuesday Blitz"]
[Site "Chess.com"]
[Date "2020.04.07"]
[Round "3"]
[White "Sn00pPawn"]
[Black "Leo_C"]
[Result "0-1"]
[WhiteElo "1845"]
[BlackElo "2321"]
[TimeControl "180+1"]
[EndTime "13:30:11 PDT"]
[Termination "Leo_C won on time"]

1. e4 {[%clk 0:03:00.9]} 1... c5 {[%clk 0:02:59.5]} 2. Nf3 {[%clk 0:03:00.9]}
2... Nc6 {[%clk 0:02:59.7]} 3. Bb5 {[%clk 0:02:58.8]} 3... d6 {[%clk 0:02:59.9]}
4. O-O {[%clk 0:02:57.9]} 4... Bd7 {[%clk 0:03:00.1]} 5. Re1 {[%clk 0:02:57.3]}
5... Nf6 {[%clk 0:02:59.2]} 6. c3 {[%clk 0:02:57.1]} 6... a6 {[%clk 0:02:59.2]}
7. Ba4 {[%clk 0:02:57.3]} 7... b5 {[%clk 0:02:57]} 8. Bc2 {[%clk 0:02:56.4]}
8... c4 {[%clk 0:02:57.4]} 9. d4 {[%clk 0:02:52.9]} 9... cxd3 {[%clk 0:02:56.9]}
10. Bxd3 {[%clk 0:02:45.5]} 10... g6 {[%clk 0:02:56.1]} 11. h3 {[%clk 0:02:44]}
11... Bg7 {[%clk 0:02:55.9]} 12. Nbd2 {[%clk 0:02:43.8]} 12... O-O {[%clk
0:02:55.2]} 13. Nf1 {[%clk 0:02:11.5]} 13... Rb8 {[%clk 0:02:43.4]} 14. a4
{[%clk 0:02:06.5]} 14... Qc7 {[%clk 0:02:31.9]} 15. Ne3 {[%clk 0:01:54.4]} 15...
e6 {[%clk 0:02:29.5]} 16. Nc2 {[%clk 0:01:45.6]} 16... bxa4 {[%clk 0:02:23.4]}
17. Rxa4 {[%clk 0:01:43]} 17... Ne5 {[%clk 0:02:20.9]} 18. Rxa6 {[%clk
0:01:26.6]} 18... Nxd3 {[%clk 0:02:19.8]} 19. Qxd3 {[%clk 0:01:26.6]} 19... Bb5
{[%clk 0:02:19.7]} 20. Qxd6 {[%clk 0:01:26.5]} 20... Qc4 {[%clk 0:02:04.2]} 21.
Ra7 {[%clk 0:01:07.3]} 21... Nxe4 {[%clk 0:01:59.6]} 22. Qf4 {[%clk 0:00:48.9]}
22... Nf6 {[%clk 0:01:50.1]} 23. Qxc4 {[%clk 0:00:45.4]} 23... Bxc4 {[%clk
0:01:49.6]} 24. Ne5 {[%clk 0:00:46.3]} 24... Bb3 {[%clk 0:01:46.9]} 25. Nd4
{[%clk 0:00:45.9]} 25... Bd5 {[%clk 0:01:43.2]} 26. c4 {[%clk 0:00:40.6]} 26...
Ba8 {[%clk 0:01:36]} 27. b3 {[%clk 0:00:40.5]} 27... Rfc8 {[%clk 0:01:18.4]} 28.
Nxf7 {[%clk 0:00:28.8]} 28... Ne4 {[%clk 0:00:57]} 29. Nh6+ {[%clk 0:00:19.1]}
29... Bxh6 {[%clk 0:00:50.2]} 30. Bxh6 {[%clk 0:00:19.1]} 30... Rb7 {[%clk
0:00:48.7]} 31. Rxb7 {[%clk 0:00:18.4]} 31... Bxb7 {[%clk 0:00:48.8]} 32. Nxe6
{[%clk 0:00:17.5]} 32... Rb8 {[%clk 0:00:40.7]} 33. Nc5 {[%clk 0:00:16.5]} 33...
Nxc5 {[%clk 0:00:39.9]} 34. b4 {[%clk 0:00:15.9]} 34... Nd3 {[%clk 0:00:39.8]}
35. Rb1 {[%clk 0:00:14.5]} 35... Be4 {[%clk 0:00:39]} 36. b5 {[%clk 0:00:11.1]}
36... Nc5 {[%clk 0:00:24]} 37. Re1 {[%clk 0:00:07.5]} 37... Bd3 {[%clk
0:00:23.9]} 38. Be3 {[%clk 0:00:05.6]} 38... Nb3 {[%clk 0:00:20.6]} 0-1

[Event "*** Titled Tuesday Blitz"]
[Site "Chess.com"]
[Date "2020.04.07"]
[Round "3"]
[White "Perecke"]
[Black "mc4chess"]
[Result "0-1"]
[WhiteElo "2142"]
[BlackElo "2369"]
[TimeControl "180+1"]
[EndTime "13:30:12 PDT"]
[Termination "mc4chess won on time"]

1. e4 {[%clk 0:03:00.9]} 1... c5 {[%clk 0:02:58.5]} 2. Nf3 {[%clk 0:03:00.6]}
2... e6 {[%clk 0:02:59]} 3. d4 {[%clk 0:03:01.1]} 3... cxd4 {[%clk 0:02:59.9]}
4. Nxd4 {[%clk 0:03:01.5]} 4... a6 {[%clk 0:03:00.5]} 5. c4 {[%clk 0:03:01.1]}
5... Nf6 {[%clk 0:02:58.4]} 6. Bd3 {[%clk 0:02:58.4]} 6... Qc7 {[%clk
0:02:57.4]} 7. O-O {[%clk 0:02:57.4]} 7... h5 {[%clk 0:02:58]} 8. Nc3 {[%clk
0:02:47.5]} 8... Bc5 {[%clk 0:02:57.8]} 9. Nce2 {[%clk 0:02:33]} 9... Nc6 {[%clk
0:02:55.3]} 10. Nxc6 {[%clk 0:02:21]} 10... dxc6 {[%clk 0:02:53.5]} 11. Bg5
{[%clk 0:01:32.5]} 11... Ng4 {[%clk 0:02:42.6]} 12. g3 {[%clk 0:01:18.2]} 12...
Qb6 {[%clk 0:02:37.1]} 13. Qe1 {[%clk 0:01:09.9]} 13... Ne5 {[%clk 0:02:36.8]}
14. Qc3 {[%clk 0:00:44.9]} 14... f6 {[%clk 0:01:42.5]} 15. Bf4 {[%clk 0:00:30]}
15... Ng4 {[%clk 0:01:16.2]} 16. Qe1 {[%clk 0:00:21.2]} 16... e5 {[%clk
0:01:16.4]} 17. Bd2 {[%clk 0:00:19.6]} 17... Be6 {[%clk 0:01:11]} 18. b4 {[%clk
0:00:18.4]} 18... Be7 {[%clk 0:00:31.8]} 19. c5 {[%clk 0:00:16.5]} 19... Qd8
{[%clk 0:00:29.6]} 20. Bc2 {[%clk 0:00:12.1]} 20... h4 {[%clk 0:00:29.7]} 21. f3
{[%clk 0:00:10.7]} 21... Nh6 {[%clk 0:00:13.8]} 22. g4 {[%clk 0:00:09.4]} 22...
Nf7 {[%clk 0:00:13.2]} 23. Rd1 {[%clk 0:00:08.3]} 23... Qc7 {[%clk 0:00:13.6]}
24. Be3 {[%clk 0:00:06.4]} 24... a5 {[%clk 0:00:13.9]} 25. a3 {[%clk 0:00:06]}
25... axb4 {[%clk 0:00:14.1]} 26. axb4 {[%clk 0:00:06.9]} 26... g5 {[%clk
0:00:13.9]} 27. Qc3 {[%clk 0:00:06.8]} 27... O-O {[%clk 0:00:13.5]} 28. Bb3
{[%clk 0:00:06.9]} 28... Ra3 {[%clk 0:00:12.2]} 29. Rb1 {[%clk 0:00:06.9]} 29...
Rd8 {[%clk 0:00:10.6]} 30. Qc2 {[%clk 0:00:06.3]} 30... Bxb3 {[%clk 0:00:09.6]}
31. Rxb3 {[%clk 0:00:07.2]} 31... Rxb3 {[%clk 0:00:09.9]} 32. Qxb3 {[%clk
0:00:08.1]} 32... Qd7 {[%clk 0:00:10.4]} 33. Qc2 {[%clk 0:00:05.5]} 33... Qd3
{[%clk 0:00:09]} 34. Qxd3 {[%clk 0:00:03.1]} 34... Rxd3 {[%clk 0:00:09.9]} 35.
Bf2 {[%clk 0:00:01.7]} 35... Rb3 {[%clk 0:00:09.9]} 36. Be1 {[%clk 0:00:02.1]}
36... Nd8 {[%clk 0:00:09.9]} 37. Rf2 {[%clk 0:00:01.8]} 37... Ne6 {[%clk
0:00:10.1]} 0-1

[Event "*** Titled Tuesday Blitz"]
[Site "Chess.com"]
[Date "2020.04.07"]
[Round "3"]
[White "almaguerjm"]
[Black "MikeSailer"]
[Result "1/2-1/2"]
[WhiteElo "2331"]
[BlackElo "2048"]
[TimeControl "180+1"]
[EndTime "13:30:13 PDT"]
[Termination "Game drawn by repetition"]

1. d4 {[%clk 0:02:44.8]} 1... d5 {[%clk 0:02:59.5]} 2. Nf3 {[%clk 0:02:43.6]}
2... Bf5 {[%clk 0:02:59.4]} 3. c4 {[%clk 0:02:05.4]} 3... e6 {[%clk 0:02:58.1]}
4. Nc3 {[%clk 0:02:04]} 4... Nc6 {[%clk 0:02:57.5]} 5. cxd5 {[%clk 0:02:02.7]}
5... exd5 {[%clk 0:02:57]} 6. a3 {[%clk 0:02:00.6]} 6... Nf6 {[%clk 0:02:53.5]}
7. Bg5 {[%clk 0:01:59.6]} 7... Be7 {[%clk 0:02:52.7]} 8. e3 {[%clk 0:01:59.6]}
8... h6 {[%clk 0:02:31.6]} 9. Bh4 {[%clk 0:01:55.1]} 9... Ne4 {[%clk 0:02:22]}
10. Bxe7 {[%clk 0:00:54.8]} 10... Nxe7 {[%clk 0:02:21.9]} 11. Qb3 {[%clk
0:00:54.8]} 11... Rb8 {[%clk 0:02:15.3]} 12. Ne5 {[%clk 0:00:55]} 12... O-O
{[%clk 0:02:06.9]} 13. Be2 {[%clk 0:00:54.7]} 13... c6 {[%clk 0:01:56.4]} 14.
O-O {[%clk 0:00:54.3]} 14... Nd2 {[%clk 0:01:56.3]} 15. Qb4 {[%clk 0:00:54.4]}
15... Nxf1 {[%clk 0:01:55.4]} 16. Rxf1 {[%clk 0:00:55.3]} 16... Ng6 {[%clk
0:01:46.6]} 17. f4 {[%clk 0:00:53.2]} 17... Nxe5 {[%clk 0:01:38.1]} 18. fxe5
{[%clk 0:00:54.1]} 18... Be4 {[%clk 0:01:35.8]} 19. Nxe4 {[%clk 0:00:53.8]}
19... dxe4 {[%clk 0:01:35.5]} 20. Rf4 {[%clk 0:00:54.1]} 20... Qb6 {[%clk
0:01:29.3]} 21. Qxb6 {[%clk 0:00:52.7]} 21... axb6 {[%clk 0:01:29.3]} 22. Rxe4
{[%clk 0:00:53.2]} 22... b5 {[%clk 0:01:24.2]} 23. Rf4 {[%clk 0:00:52.3]} 23...
Rbe8 {[%clk 0:01:19.1]} 24. Bd1 {[%clk 0:00:52.3]} 24... g6 {[%clk 0:01:04.2]}
25. Bb3 {[%clk 0:00:52.3]} 25... Kg7 {[%clk 0:01:04.6]} 26. Rf6 {[%clk
0:00:52.7]} 26... c5 {[%clk 0:00:57.9]} 27. Kf2 {[%clk 0:00:50.3]} 27... cxd4
{[%clk 0:00:57.8]} 28. exd4 {[%clk 0:00:51.1]} 28... Rd8 {[%clk 0:00:52.7]} 29.
Ke3 {[%clk 0:00:51.5]} 29... Rc8 {[%clk 0:00:51.9]} 30. Rb6 {[%clk 0:00:50.1]}
30... Rc1 {[%clk 0:00:43.3]} 31. Rxb5 {[%clk 0:00:50.4]} 31... Re1+ {[%clk
0:00:39.4]} 32. Kd3 {[%clk 0:00:49.3]} 32... Rg1 {[%clk 0:00:37.2]} 33. Bd5
{[%clk 0:00:49.4]} 33... Rd8 {[%clk 0:00:32.6]} 34. a4 {[%clk 0:00:38.2]} 34...
b6 {[%clk 0:00:31]} 35. b4 {[%clk 0:00:37.9]} 35... Rd1+ {[%clk 0:00:27.5]} 36.
Ke3 {[%clk 0:00:36.8]} 36... Re1+ {[%clk 0:00:26.7]} 37. Kf2 {[%clk 0:00:32.1]}
37... Ra1 {[%clk 0:00:26.3]} 38. Bb3 {[%clk 0:00:31]} 38... Rxd4 {[%clk
0:00:20.5]} 39. Rxb6 {[%clk 0:00:31.4]} 39... Rd2+ {[%clk 0:00:19]} 40. Ke3
{[%clk 0:00:31.2]} 40... Rxg2 {[%clk 0:00:18.8]} 41. Bd5 {[%clk 0:00:29.4]}
41... Rxh2 {[%clk 0:00:15.5]} 42. Rb7 {[%clk 0:00:28.3]} 42... Rh4 {[%clk
0:00:09.8]} 43. Rxf7+ {[%clk 0:00:27.3]} 43... Kh8 {[%clk 0:00:09.7]} 44. Rf8+
{[%clk 0:00:27.5]} 44... Kg7 {[%clk 0:00:08.2]} 45. Rf7+ {[%clk 0:00:25.9]}
45... Kh8 {[%clk 0:00:08.2]} 46. Rb7 {[%clk 0:00:24.2]} 46... Rxa4 {[%clk
0:00:07]} 47. b5 {[%clk 0:00:23.8]} 47... Ra3+ {[%clk 0:00:07.3]} 48. Kf2 {[%clk
0:00:23.1]} 48... Rh2+ {[%clk 0:00:06.1]} 49. Kg1 {[%clk 0:00:23.6]} 49... Rd2
{[%clk 0:00:05.3]} 50. Rb8+ {[%clk 0:00:20.4]} 50... Kg7 {[%clk 0:00:04.5]} 51.
Rb7+ {[%clk 0:00:20.8]} 51... Kh8 {[%clk 0:00:03.4]} 52. Rb8+ {[%clk 0:00:20.2]}
52... Kg7 {[%clk 0:00:03.6]} 53. Rb7+ {[%clk 0:00:20.1]} 53... Kh8 {[%clk
0:00:03.1]} 1/2-1/2

[Event "*** Titled Tuesday Blitz"]
[Site "Chess.com"]
[Date "2020.04.07"]
[Round "3"]
[White "Galileo22"]
[Black "DamianoLew95"]
[Result "1-0"]
[WhiteElo "2342"]
[BlackElo "2578"]
[TimeControl "180+1"]
[EndTime "13:30:14 PDT"]
[Termination "Galileo22 won by resignation"]

1. d4 {[%clk 0:03:00.1]} 1... d5 {[%clk 0:02:59.4]} 2. Nf3 {[%clk 0:03:00.1]}
2... Nf6 {[%clk 0:02:59.2]} 3. c4 {[%clk 0:03:00.3]} 3... c6 {[%clk 0:02:58.7]}
4. Nc3 {[%clk 0:02:56.1]} 4... dxc4 {[%clk 0:02:58.6]} 5. a4 {[%clk 0:02:54.9]}
5... Bf5 {[%clk 0:02:57.9]} 6. Ne5 {[%clk 0:02:52.3]} 6... Nbd7 {[%clk
0:02:55.8]} 7. Nxc4 {[%clk 0:02:50.8]} 7... Nb6 {[%clk 0:02:56]} 8. Ne5 {[%clk
0:02:44.4]} 8... a5 {[%clk 0:02:55.8]} 9. f3 {[%clk 0:02:43.2]} 9... Nfd7 {[%clk
0:02:54.6]} 10. Nxd7 {[%clk 0:02:28.7]} 10... Qxd7 {[%clk 0:02:52.7]} 11. e4
{[%clk 0:02:28.7]} 11... Bg6 {[%clk 0:02:49.6]} 12. Be3 {[%clk 0:02:28.9]} 12...
e6 {[%clk 0:02:43.9]} 13. d5 {[%clk 0:02:06.7]} 13... Qc7 {[%clk 0:02:41]} 14.
dxc6 {[%clk 0:01:47.5]} 14... bxc6 {[%clk 0:02:41.9]} 15. Qc2 {[%clk 0:01:40.8]}
15... Bb4 {[%clk 0:02:39.4]} 16. Be2 {[%clk 0:01:40.5]} 16... Nd5 {[%clk
0:02:28.7]} 17. Bd2 {[%clk 0:01:30.4]} 17... O-O {[%clk 0:02:20.1]} 18. O-O
{[%clk 0:01:13.3]} 18... Bc5+ {[%clk 0:02:18.5]} 19. Kh1 {[%clk 0:01:12.6]}
19... Ne3 {[%clk 0:02:15.8]} 20. Bxe3 {[%clk 0:01:07.2]} 20... Bxe3 {[%clk
0:02:08.9]} 21. Bc4 {[%clk 0:00:59.6]} 21... Rfd8 {[%clk 0:02:02.7]} 22. Rad1
{[%clk 0:00:56.6]} 22... h5 {[%clk 0:01:54.3]} 23. g3 {[%clk 0:00:52]} 23... Qb6
{[%clk 0:01:45.7]} 24. b3 {[%clk 0:00:46.2]} 24... Bc5 {[%clk 0:01:40.4]} 25.
Ne2 {[%clk 0:00:43.2]} 25... Be3 {[%clk 0:01:35.1]} 26. Kg2 {[%clk 0:00:41.5]}
26... Kh7 {[%clk 0:01:29.5]} 27. f4 {[%clk 0:00:29.7]} 27... Rxd1 {[%clk
0:01:10.2]} 28. Rxd1 {[%clk 0:00:27.9]} 28... Qc5 {[%clk 0:01:11.1]} 29. Rd7
{[%clk 0:00:18]} 29... Kh8 {[%clk 0:01:00.1]} 30. Qc3 {[%clk 0:00:17.7]} 30...
Bxe4+ {[%clk 0:00:51]} 31. Kf1 {[%clk 0:00:17.5]} 31... Bf5 {[%clk 0:00:35.1]}
32. Rxf7 {[%clk 0:00:12.8]} 32... Rg8 {[%clk 0:00:31.8]} 33. Rxf5 {[%clk
0:00:10.5]} 33... Qxf5 {[%clk 0:00:24.6]} 34. Qxe3 {[%clk 0:00:09.4]} 34... Rd8
{[%clk 0:00:25.3]} 35. Kf2 {[%clk 0:00:09.1]} 35... h4 {[%clk 0:00:21]} 36. Qxe6
{[%clk 0:00:08]} 36... Qh5 {[%clk 0:00:15.6]} 37. g4 {[%clk 0:00:06.9]} 37...
Qh7 {[%clk 0:00:14.7]} 38. f5 {[%clk 0:00:06.6]} 38... Rf8 {[%clk 0:00:14.4]}
39. Nf4 {[%clk 0:00:06.1]} 39... Rf6 {[%clk 0:00:09.3]} 40. Qe8+ {[%clk
0:00:05.4]} 1-0

[Event "*** Titled Tuesday Blitz"]
[Site "Chess.com"]
[Date "2020.04.07"]
[Round "3"]
[White "SergioGarciaFuentes"]
[Black "sari07"]
[Result "1-0"]
[WhiteElo "2206"]
[BlackElo "2371"]
[TimeControl "180+1"]
[EndTime "13:30:14 PDT"]
[Termination "SergioGarciaFuentes won on time"]

1. Nf3 {[%clk 0:03:00.9]} 1... d5 {[%clk 0:02:23.3]} 2. g3 {[%clk 0:02:51.2]}
2... Nf6 {[%clk 0:02:22.6]} 3. Bg2 {[%clk 0:02:51.2]} 3... c6 {[%clk 0:02:22.7]}
4. b3 {[%clk 0:02:50.8]} 4... g6 {[%clk 0:02:19.3]} 5. Bb2 {[%clk 0:02:50.9]}
5... Bg7 {[%clk 0:02:18.8]} 6. c4 {[%clk 0:02:51.5]} 6... O-O {[%clk 0:02:17.1]}
7. O-O {[%clk 0:02:50.9]} 7... Bg4 {[%clk 0:02:13.8]} 8. d3 {[%clk 0:02:48.5]}
8... Nbd7 {[%clk 0:02:12.8]} 9. Nbd2 {[%clk 0:02:44]} 9... Re8 {[%clk
0:02:11.3]} 10. h3 {[%clk 0:02:36.4]} 10... Bxf3 {[%clk 0:02:10.8]} 11. Nxf3
{[%clk 0:02:36.9]} 11... e5 {[%clk 0:02:11.7]} 12. e3 {[%clk 0:02:23.3]} 12...
a6 {[%clk 0:01:50.2]} 13. Rc1 {[%clk 0:02:20.5]} 13... b5 {[%clk 0:01:50]} 14.
Qc2 {[%clk 0:02:10.6]} 14... Qe7 {[%clk 0:01:24]} 15. cxd5 {[%clk 0:01:50.7]}
15... cxd5 {[%clk 0:01:23.6]} 16. Qc6 {[%clk 0:01:51.1]} 16... h6 {[%clk
0:01:16.9]} 17. d4 {[%clk 0:01:07.3]} 17... e4 {[%clk 0:01:06.3]} 18. Ne5 {[%clk
0:01:07.3]} 18... Kh7 {[%clk 0:01:05.7]} 19. Nxd7 {[%clk 0:00:56.6]} 19... Qxd7
{[%clk 0:01:04.6]} 20. Qxd7 {[%clk 0:00:55.5]} 20... Nxd7 {[%clk 0:01:05.5]} 21.
Rc7 {[%clk 0:00:56]} 21... Red8 {[%clk 0:00:50.5]} 22. Rfc1 {[%clk 0:00:54.6]}
22... Kg8 {[%clk 0:00:49.1]} 23. h4 {[%clk 0:00:53.1]} 23... Bf8 {[%clk
0:00:41.1]} 24. Bf1 {[%clk 0:00:40.8]} 24... Bd6 {[%clk 0:00:35]} 25. R7c6
{[%clk 0:00:39.3]} 25... Nb8 {[%clk 0:00:24.9]} 26. Rc8 {[%clk 0:00:38.2]} 26...
Nd7 {[%clk 0:00:23.4]} 27. Rxd8+ {[%clk 0:00:34.7]} 27... Rxd8 {[%clk
0:00:23.1]} 28. Rc6 {[%clk 0:00:35.3]} 28... Nb8 {[%clk 0:00:22.5]} 29. Rb6
{[%clk 0:00:33.4]} 29... Kf8 {[%clk 0:00:16.7]} 30. a4 {[%clk 0:00:33.3]} 30...
bxa4 {[%clk 0:00:14.7]} 31. bxa4 {[%clk 0:00:33.3]} 31... a5 {[%clk 0:00:14.8]}
32. Bc3 {[%clk 0:00:30]} 32... Bc7 {[%clk 0:00:13.8]} 33. Rb5 {[%clk 0:00:23.3]}
33... Nc6 {[%clk 0:00:13.2]} 34. Rc5 {[%clk 0:00:22.7]} 34... Rd6 {[%clk
0:00:12.8]} 35. Bb5 {[%clk 0:00:22.6]} 35... Ke7 {[%clk 0:00:03.8]} 36. Rxc6
{[%clk 0:00:21.6]} 36... Rxc6 {[%clk 0:00:03.1]} 37. Bxc6 {[%clk 0:00:22]} 37...
Kd6 {[%clk 0:00:03.6]} 38. Bb5 {[%clk 0:00:22.6]} 38... Ke7 {[%clk 0:00:02.6]}
39. Bb2 {[%clk 0:00:22]} 39... Bd6 {[%clk 0:00:01.9]} 40. Bc3 {[%clk 0:00:21.9]}
40... Bc7 {[%clk 0:00:01.8]} 41. Bb2 {[%clk 0:00:21.6]} 41... Bd6 {[%clk
0:00:01.7]} 42. Bc1 {[%clk 0:00:22.2]} 42... Bb4 {[%clk 0:00:01.5]} 43. Kf1
{[%clk 0:00:22.3]} 1-0

[Event "*** Titled Tuesday Blitz"]
[Site "Chess.com"]
[Date "2020.04.07"]
[Round "3"]
[White "sergiochess83"]
[Black "Faqade"]
[Result "1/2-1/2"]
[WhiteElo "2844"]
[BlackElo "2621"]
[TimeControl "180+1"]
[EndTime "13:30:16 PDT"]
[Termination "Game drawn by repetition"]

1. e4 {[%clk 0:03:00.9]} 1... c5 {[%clk 0:02:58.1]} 2. Nf3 {[%clk 0:03:00.5]}
2... e6 {[%clk 0:02:58.6]} 3. d4 {[%clk 0:03:00.1]} 3... cxd4 {[%clk 0:02:59.5]}
4. Nxd4 {[%clk 0:03:01]} 4... Nc6 {[%clk 0:03:00]} 5. Nc3 {[%clk 0:02:58.7]}
5... Qc7 {[%clk 0:02:57.8]} 6. g3 {[%clk 0:02:47.8]} 6... a6 {[%clk 0:02:50.4]}
7. Bg2 {[%clk 0:02:45.9]} 7... Nf6 {[%clk 0:02:49.9]} 8. O-O {[%clk 0:02:44]}
8... Nxd4 {[%clk 0:02:48.9]} 9. Qxd4 {[%clk 0:02:43.5]} 9... Bc5 {[%clk
0:02:48.7]} 10. Bf4 {[%clk 0:02:43.1]} 10... d6 {[%clk 0:02:48.7]} 11. Qd2
{[%clk 0:02:42.1]} 11... h6 {[%clk 0:02:48.5]} 12. Rad1 {[%clk 0:02:30.2]} 12...
e5 {[%clk 0:02:47.3]} 13. Be3 {[%clk 0:02:30.4]} 13... Bb4 {[%clk 0:02:47.8]}
14. Nb5 {[%clk 0:02:27.9]} 14... axb5 {[%clk 0:02:48.7]} 15. Qxb4 {[%clk
0:02:28.1]} 15... O-O {[%clk 0:02:48.9]} 16. c3 {[%clk 0:02:06.9]} 16... Ng4
{[%clk 0:01:40.4]} 17. Bc1 {[%clk 0:01:58]} 17... Rxa2 {[%clk 0:01:37.3]} 18.
Rxd6 {[%clk 0:01:37.3]} 18... Be6 {[%clk 0:01:32.3]} 19. Rfd1 {[%clk 0:01:14.4]}
19... Ra1 {[%clk 0:01:04.1]} 20. h3 {[%clk 0:01:01.1]} 20... Nf6 {[%clk
0:01:04.1]} 21. Be3 {[%clk 0:00:55.6]} 21... Rfa8 {[%clk 0:01:03.4]} 22. Kh2
{[%clk 0:00:47.7]} 22... Qc4 {[%clk 0:00:59.4]} 23. Rxa1 {[%clk 0:00:28]} 23...
Rxa1 {[%clk 0:00:54.4]} 24. Rb6 {[%clk 0:00:27.1]} 24... Qe2 {[%clk 0:00:34.3]}
25. Qc5 {[%clk 0:00:22.9]} 25... Qd1 {[%clk 0:00:17.8]} 26. f3 {[%clk 0:00:21]}
26... Qe2 {[%clk 0:00:16.2]} 27. Rxb7 {[%clk 0:00:07.3]} 27... Nxe4 {[%clk
0:00:12]} 28. fxe4 {[%clk 0:00:05.3]} 28... Bxh3 {[%clk 0:00:12]} 29. Bf2 {[%clk
0:00:02.8]} 29... Be6 {[%clk 0:00:09.2]} 30. g4 {[%clk 0:00:01.7]} 30... Qxg4
{[%clk 0:00:08.4]} 31. Qe3 {[%clk 0:00:02.6]} 31... Qh5+ {[%clk 0:00:05.5]} 32.
Kg3 {[%clk 0:00:03]} 32... Qg4+ {[%clk 0:00:03.2]} 33. Kh2 {[%clk 0:00:03.3]}
33... Qh5+ {[%clk 0:00:03.6]} 34. Kg3 {[%clk 0:00:03.8]} 34... Rd1 {[%clk
0:00:03.9]} 35. Rb8+ {[%clk 0:00:03.7]} 35... Kh7 {[%clk 0:00:03.6]} 36. Rxb5
{[%clk 0:00:04.6]} 36... Qg4+ {[%clk 0:00:03.6]} 37. Kh2 {[%clk 0:00:04.9]}
37... Qh5+ {[%clk 0:00:04.1]} 38. Kg3 {[%clk 0:00:05.4]} 38... Qg4+ {[%clk
0:00:04]} 39. Kh2 {[%clk 0:00:05.8]} 39... Qh5+ {[%clk 0:00:02.6]} 40. Kg3
{[%clk 0:00:06.1]} 1/2-1/2